bitfinex/quotes_SOLUSD_20241125
["timestamp","ask_amount","ask_price","bid_price","bid_amount"]
[1732572609844,4.4163,237.75,237.63,19.225]
[1732572609845,20.4209105,237.69,237.63,19.225]
[1732572610724,21.6830105,237.69,237.63,19.225]
[1732572610925,20.4209105,237.68,237.6,20.4209105]
[1732572611150,20.4209105,237.7,237.62,20.4209105]
[1732572611450,21.6829105,237.71,237.63,20.4209105]
[1732572611742,20.4209105,237.72,237.64,20.4209105]
[1732572611929,20.4209105,237.74,237.65,20.4209105]
[1732572612136,1.2617,237.77,237.6,30.4209105]
[1732572612137,20.4209105,237.77,237.69,20.4209105]
[1732572612316,1.2616,237.78,237.7,20.4209105]
[1732572612317,21.6825105,237.78,237.7,20.4209105]
[1732572612522,20.4209105,237.76,237.68,63.3989945]
[1732572612828,1.2618,237.75,237.68,63.3989945]
[1732572613035,21.6826105,237.76,237.68,63.3989945]
[1732572613321,21.6826105,237.76,237.68,67.6061945]
[1732572614649,20.4209105,237.76,237.68,67.6061945]
[1732572615950,1.2617,237.77,237.7,20.4209105]
[1732572616184,20.4209105,237.8,237.73,23.776884]
[1732572616362,20.4209105,237.82,237.75,23.776884]
[1732572616759,20.4209105,237.84,237.76,20.4209105]
[1732572616962,6.62207551,237.91,237.82,20.4209105]
[1732572617164,6.62207551,237.91,237.89,20.4209105]
[1732572618654,6.62207551,237.91,237.85,20.4209105]
[1732572618856,6.62207551,237.91,237.87,20.0]
[1732572619155,6.62207551,237.91,237.89,20.4209105]
[1732572619565,6.62207551,237.91,237.9,23.776884]
[1732572619780,0.5003757,238.01,237.91,0.25098]
[1732572619987,22.1816862,238.01,237.94,20.4209105]
[1732572620681,1.7607757,238.01,237.94,20.4209105]
[1732572621676,0.5003757,238.01,237.96,20.4209105]
[1732572622097,0.5003757,238.01,238.0,20.4209105]
[1732572622259,0.5003757,238.01,237.94,42.943484]
[1732572622260,0.5003757,238.01,237.98,20.4209105]
[1732572622453,0.5003757,238.01,237.96,20.4209105]
[1732572624096,22.1816862,238.01,237.92,20.4209105]
[1732572624393,22.1816862,238.01,237.93,23.776884]
[1732572624574,0.5003757,238.01,237.96,20.4209105]
[1732572624889,1.7607757,238.01,237.96,20.4209105]
[1732572625097,0.5003757,238.01,237.96,20.4209105]
[1732572625478,0.5003757,238.01,237.98,20.4209105]
[1732572626723,0.5003757,238.01,237.93,23.776884]
[1732572626993,0.5003757,238.01,237.95,23.776884]
[1732572627194,1.7607757,238.01,237.95,23.776884]
[1732572627371,0.5003757,238.01,237.95,23.776884]
[1732572627565,0.5003757,238.01,237.96,20.4209105]
[1732572627970,0.5003757,238.01,237.97,23.776884]
[1732572628199,0.5003757,238.01,238.0,20.5464005]
[1732572628398,0.5003757,238.01,238.0,44.3232845]
[1732572629687,0.5003757,238.01,238.0,60.9607845]
[1732572629867,9.14374679,238.14,238.04,0.12549]
[1732572630068,9.14374679,238.14,238.08,20.4209105]
[1732572630575,9.14374679,238.14,238.1,20.4209105]
[1732572630749,7.88404679,238.14,238.11,23.776884]
[1732572630955,6.2242,238.2,238.12,20.4209105]
[1732572631272,6.2242,238.2,238.14,20.4209105]
[1732572631844,1.2595,238.19,238.14,20.4209105]
[1732572632467,1.2595,238.19,238.12,20.4209105]
[1732572632676,21.6804105,238.19,238.12,20.4209105]
[1732572635070,20.4209105,238.17,238.09,20.4209105]
[1732572635377,20.4209105,238.17,238.07,20.4209105]
[1732572635761,20.4209105,238.17,238.09,20.4209105]
[1732572635971,21.6804105,238.19,238.11,20.4209105]
[1732572636148,1.2595,238.19,238.13,20.4209105]
[1732572637275,6.4301,238.25,238.16,20.4209105]
[1732572637276,1.2591,238.25,238.16,20.4209105]
[1732572637466,20.4209105,238.22,238.14,44.1977945]
[1732572637662,30.0,238.15,238.14,44.1977945]
[1732572638344,20.4209105,238.22,238.14,44.1977945]
[1732572638753,1.2593,238.21,238.14,20.4209105]
[1732572638959,20.4209105,238.16,238.08,44.1977945]
[1732572639168,4.4077,238.21,238.07,15.2239]
[1732572639169,50.4209105,238.14,238.07,15.2239]
[1732572639954,30.0,238.14,238.08,20.4209105]
[1732572640158,30.0,238.14,238.1,20.4209105]
[1732572640550,30.0,238.14,238.12,20.4209105]
[1732572640955,1.2595,238.19,238.12,20.4209105]
[1732572641155,1.2595,238.19,238.14,20.4209105]
[1732572641376,30.0,238.15,238.14,20.4209105]
[1732572641873,1.2593,238.21,238.14,20.4209105]
[1732572642108,20.4209105,238.2,238.12,44.1977945]
[1732572643063,1.2594,238.19,238.12,44.1977945]
[1732572644554,1.2594,238.2,238.14,20.4209105]
[1732572645790,20.4209105,238.15,238.11,20.0]
[1732572646161,20.4209105,238.17,238.11,20.0]
[1732572646478,12.71295289,238.18,238.12,23.776884]
[1732572646677,30.0,238.14,238.12,36.48983689]
[1732572647107,12.71295289,238.2,238.12,36.48983689]
[1732572647374,1.2593,238.21,238.12,36.48983689]
[1732572647577,1.2593,238.21,238.12,40.68923689]
[1732572648281,1.2593,238.21,238.14,12.71295289]
[1732572649184,1.2593,238.21,238.12,40.68923689]
[1732572649495,12.71295289,238.2,238.12,40.68923689]
[1732572649851,12.71295289,238.18,238.12,23.776884]
[1732572650055,4.4074,238.23,238.12,23.776884]
[1732572650056,12.71295289,238.2,238.12,23.776884]
[1732572650290,12.71295289,238.2,238.12,36.48983689]
[1732572650468,12.71295289,238.19,238.12,23.776884]
[1732572651359,13.97245289,238.19,238.12,23.776884]
[1732572652386,30.0,238.14,238.12,23.776884]
[1732572653880,30.0,238.14,238.13,12.71295289]
[1732572654187,1.2594,238.19,238.13,12.71295289]
[1732572654574,1.2594,238.2,238.14,23.776884]
[1732572654980,12.71295289,238.21,238.14,23.776884]
[1732572654981,13.97225289,238.21,238.14,23.776884]
[1732572655201,1.2593,238.21,238.15,12.71295289]
[1732572655498,1.2593,238.21,238.16,23.776884]
[1732572656297,1.2591,238.25,238.18,23.776884]
[1732572656483,1.2591,238.25,238.19,12.71295289]
[1732572657127,1.2591,238.25,238.19,36.48983689]
[1732572657128,30.0,238.2,238.19,36.48983689]
[1732572657300,30.0,238.2,238.19,52.03363689]
[1732572657792,30.0,238.2,238.19,39.320684]
[1732572658186,30.0,238.2,238.15,20.0]
[1732572658372,30.0,238.2,238.14,23.776884]
[1732572660001,31.2594,238.2,238.14,23.776884]
[1732572660397,20.74996143,238.2,238.14,23.776884]
[1732572662577,1.2592,238.23,238.16,23.776884]
[1732572663006,12.71295289,238.24,238.17,12.71295289]
[1732572663296,12.71295289,238.24,238.16,23.776884]
[1732572663297,0.5003757,238.26,238.2,23.776884]
[1732572663679,1.7594757,238.26,238.2,23.776884]
[1732572663897,0.5003757,238.26,238.2,27.974984]
[1732572664394,0.5003757,238.26,238.22,23.776884]
[1732572664623,30.0,238.23,238.22,23.776884]
[1732572665182,0.5003757,238.26,238.22,23.776884]
[1732572666308,0.5003757,238.26,238.25,36.61532689]
[1732572668415,0.5003757,238.26,238.17,20.0]
[1732572668616,0.5003757,238.26,238.24,12.71295289]
[1732572669089,0.5003757,238.26,238.25,0.12549]
[1732572670112,0.5003757,238.26,238.25,24.027864]
[1732572670308,0.5003757,238.26,238.25,44.203764]
[1732572670516,0.12233832,238.26,238.25,44.203764]
[1732572670819,0.12233832,238.26,238.25,39.881074]
[1732572671112,0.12233832,238.26,238.25,44.078274]
[1732572672201,0.12233832,238.26,238.25,39.881074]
[1732572672395,1.38143832,238.26,238.17,12.71295289]
[1732572672598,12.71295289,238.25,238.17,12.46665289]
[1732572672813,12.71295289,238.25,238.16,12.71295289]
[1732572673122,12.71295289,238.21,238.14,12.71295289]
[1732572673289,12.71295289,238.18,238.1,12.71295289]
[1732572673492,12.71295289,238.2,238.12,12.71295289]
[1732572673794,12.71295289,238.2,238.03,10.0]
[1732572673795,12.71295289,238.14,238.01,16.3092]
[1732572673987,12.71295289,238.11,238.03,12.71295289]
[1732572674425,1.2599,238.1,238.03,12.71295289]
[1732572675195,10.0,238.18,238.01,16.3092]
[1732572675196,30.0,238.09,238.05,12.71295289]
[1732572675720,30.0,238.09,238.07,12.71295289]
[1732572675919,1.2598,238.13,238.07,12.71295289]
[1732572676294,13.97275289,238.13,238.05,23.776884]
[1732572677526,13.97275289,238.13,238.06,12.71295289]
[1732572677695,12.71295289,238.15,238.08,12.71295289]
[1732572677895,30.0,238.09,238.08,12.71295289]
[1732572678206,30.0,238.09,238.08,36.48983689]
[1732572678405,1.2596,238.17,238.08,36.48983689]
[1732572678607,6.6432,238.22,238.12,24.027864]
[1732572678924,0.12233832,238.26,238.12,24.027864]
[1732572678925,1.2592,238.24,238.19,12.71295289]
[1732572679093,30.0,238.2,238.19,36.48983689]
[1732572679291,1.38143832,238.26,238.19,36.48983689]
[1732572679516,1.38143832,238.26,238.2,23.776884]
[1732572679720,0.12233832,238.26,238.22,23.776884]
[1732572680121,30.0,238.23,238.19,12.71295289]
[1732572680296,30.0,238.23,238.2,23.776884]
[1732572680619,30.0,238.23,238.19,23.776884]
[1732572681039,20.3272161,238.22,238.14,20.3272161]
[1732572681198,30.0,238.21,238.16,20.3272161]
[1732572681699,30.0,238.21,238.14,20.3272161]
[1732572681896,30.0,238.21,238.15,23.776884]
[1732572682108,20.3272161,238.22,238.15,23.776884]
[1732572682505,1.2593,238.21,238.15,23.776884]
[1732572683814,1.2593,238.21,238.16,20.3272161]
[1732572684998,30.0,238.2,238.16,20.3272161]
[1732572685618,30.0,238.2,238.14,44.1041001]
[1732572688723,30.0,238.2,238.16,20.3272161]
[1732572689030,30.0,238.2,238.18,20.3272161]
[1732572689603,30.0,238.2,238.19,23.776884]
[1732572690609,0.12233832,238.26,238.19,23.776884]
[1732572690807,0.12233832,238.26,238.22,20.3272161]
[1732572693205,1.2591,238.25,238.22,20.3272161]
[1732572693727,0.12233832,238.26,238.22,20.3272161]
[1732572699821,1.38143832,238.26,238.22,20.3272161]
[1732572700025,0.12233832,238.26,238.23,20.3272161]
[1732572700303,0.12233832,238.26,238.25,36.47253999]
[1732572700523,0.12233832,238.26,238.25,23.776884]
[1732572700830,0.12233832,238.26,238.25,36.47253999]
[1732572701227,0.12233832,238.26,238.25,40.66973999]
[1732572701531,0.12233832,238.26,238.25,40.92071999]
[1732572701720,1.2584,238.39,238.33,23.776884]
[1732572702038,0.5003757,238.5,238.41,20.0]
[1732572702238,1.2579,238.49,238.42,36.47253999]
[1732572702831,1.2579,238.49,238.44,12.69565599]
[1732572703134,1.2579,238.49,238.4,12.69565599]
[1732572703135,12.69565599,238.48,238.4,12.69565599]
[1732572703342,12.69565599,238.44,238.37,23.776884]
[1732572703632,4.4026,238.49,238.34,12.69565599]
[1732572703809,4.4026,238.49,238.33,15.5213]
[1732572703810,12.69565599,238.38,238.33,15.5213]
[1732572704010,12.69565599,238.38,238.33,20.0]
[1732572704227,12.69565599,238.36,238.28,12.69565599]
[1732572704535,12.69565599,238.34,238.27,15.3007]
[1732572705104,1.2587,238.33,238.27,15.3007]
[1732572705933,1.2587,238.33,238.28,23.776884]
[1732572706233,1.2587,238.33,238.2,12.69565599]
[1732572706234,12.69565599,238.3,238.21,15.2726]
[1732572706435,12.69565599,238.28,238.21,15.2726]
[1732572707147,12.69565599,238.31,238.22,12.69565599]
[1732572708021,1.2589,238.3,238.23,23.776884]
[1732572709436,12.69565599,238.3,238.23,23.776884]
[1732572709666,12.69565599,238.3,238.22,36.47253999]
[1732572709940,12.69565599,238.3,238.23,12.69565599]
[1732572710640,12.69565599,238.31,238.23,12.69565599]
[1732572710814,12.69565599,238.3,238.23,12.69565599]
[1732572711439,13.95455599,238.29,238.22,36.47253999]
[1732572711940,12.69565599,238.25,238.18,12.69565599]
[1732572712943,12.69565599,238.26,238.19,12.69565599]
[1732572713326,12.69565599,238.26,238.07,10.0]
[1732572713327,10.0,237.95,237.71,52.4053288]
[1732572713532,10.0,237.79,237.73,12.69565599]
[1732572713733,12.69565599,237.81,237.69,1.80745583]
[1732572713924,4.14228529,237.89,237.69,1.80745583]
[1732572713925,12.69565599,237.77,237.69,12.69565599]
[1732572714436,12.69565599,237.73,237.65,0.5003757]
[1732572714647,12.69565599,237.75,237.67,12.69565599]
[1732572714946,12.69565599,237.84,237.67,12.69565599]
[1732572714947,12.69565599,237.77,237.67,12.69565599]
[1732572715537,13.95735599,237.77,237.67,12.69565599]
[1732572715732,13.95735599,237.77,237.68,23.776884]
[1732572716326,21.67228262,237.77,237.68,20.41058262]
[1732572716751,20.41058262,237.75,237.66,20.53607262]
[1732572717548,20.41058262,237.75,237.67,23.776884]
[1732572717745,20.41058262,237.75,237.66,20.41058262]
[1732572717947,4.4149,237.83,237.65,0.5003757]
[1732572717948,20.41058262,237.71,237.65,0.5003757]
[1732572718836,10.0,237.82,237.65,0.5003757]
[1732572718837,1.262,237.72,237.65,0.5003757]
[1732572719228,1.262,237.72,237.65,24.2772597]
[1732572719850,20.41058262,237.73,237.65,24.2772597]
[1732572720155,21.67248262,237.73,237.67,23.776884]
[1732572720457,21.67248262,237.73,237.65,24.2772597]
[1732572721022,20.41058262,237.71,237.65,24.2772597]
[1732572721637,20.41058262,237.7,237.65,24.2772597]
[1732572721834,20.41058262,237.7,237.65,0.5003757]
[1732572722259,20.41058262,237.69,237.65,0.5003757]
[1732572722640,20.41058262,237.68,237.65,0.5003757]
[1732572722833,20.41058262,237.69,237.65,0.5003757]
[1732572723440,20.41058262,237.71,237.65,0.5003757]
[1732572723655,20.41058262,237.68,237.65,0.5003757]
[1732572723954,20.41058262,237.7,237.65,0.5003757]
[1732572724337,20.41058262,237.69,237.65,0.5003757]
[1732572724540,20.41058262,237.68,237.65,0.5003757]
[1732572724940,20.41058262,237.66,237.65,0.5003757]
[1732572727269,21.67288262,237.66,237.65,0.5003757]
[1732572728258,20.41058262,237.66,237.65,0.5003757]
[1732572728949,20.41058262,237.66,237.48,35.94848262]
[1732572729253,20.41058262,237.55,237.48,35.94848262]
[1732572729833,20.41058262,237.57,237.48,40.15928262]
[1732572730252,20.41058262,237.59,237.52,20.41058262]
[1732572730458,20.41058262,237.63,237.57,20.41058262]
[1732572730661,20.41058262,237.63,237.58,23.776884]
[1732572730841,20.41058262,237.63,237.56,23.776884]
[1732572731663,20.41058262,237.65,237.58,23.776884]
[1732572731964,20.41058262,237.67,237.6,23.776884]
[1732572732532,20.41058262,237.65,237.58,23.776884]
[1732572732763,20.41058262,237.63,237.57,20.0]
[1732572733059,20.41058262,237.63,237.58,23.776884]
[1732572733260,20.41058262,237.67,237.59,20.41058262]
[1732572733464,20.41058262,237.67,237.6,23.776884]
[1732572733633,20.41058262,237.65,237.6,23.776884]
[1732572733839,20.41058262,237.67,237.59,20.41058262]
[1732572734034,20.41058262,237.65,237.6,23.776884]
[1732572734230,20.41058262,237.65,237.58,23.776884]
[1732572734636,20.41058262,237.67,237.6,23.776884]
[1732572735961,20.41058262,237.65,237.6,23.776884]
[1732572736141,7.1284479,237.77,237.58,23.776884]
[1732572736345,20.41058262,237.73,237.63,20.41058262]
[1732572736560,20.41058262,237.71,237.63,20.41058262]
[1732572736963,20.41058262,237.69,237.62,23.776884]
[1732572737342,20.41058262,237.67,237.59,20.41058262]
[1732572737556,20.41058262,237.65,237.58,23.776884]
[1732572737745,20.41058262,237.67,237.59,20.41058262]
[1732572738067,20.41058262,237.69,237.61,20.41058262]
[1732572738242,20.41058262,237.73,237.65,20.41058262]
[1732572738952,20.41058262,237.69,237.62,23.776884]
[1732572739467,20.41058262,237.69,237.57,4.2092]
[1732572739468,20.41058262,237.73,237.66,23.776884]
[1732572739872,20.41058262,237.69,237.62,23.776884]
[1732572740172,4.4156,237.79,237.62,23.776884]
[1732572740173,20.41058262,237.73,237.65,20.41058262]
[1732572740340,20.41058262,237.75,237.67,20.41058262]
[1732572740742,20.41058262,237.75,237.68,23.776884]
[1732572740968,20.41058262,237.77,237.69,20.41058262]
[1732572741147,20.41058262,237.77,237.7,23.776884]
[1732572741466,20.41058262,237.84,237.62,15.722]
[1732572741467,20.41058262,237.81,237.73,20.41058262]
[1732572741641,6.3253,237.86,237.73,20.41058262]
[1732572741642,20.41058262,237.83,237.74,23.776884]
[1732572742064,20.41058262,237.81,237.74,23.776884]
[1732572743868,20.41058262,237.83,237.76,23.776884]
[1732572744170,10.0,237.96,237.95,0.25098]
[1732572744370,1.84083068,238.11,237.98,23.902374]
[1732572744571,20.41058262,238.15,238.06,20.41058262]
[1732572744774,20.41058262,238.11,238.02,20.41058262]
[1732572745075,20.41058262,238.07,237.98,20.41058262]
[1732572745281,20.41058262,238.09,238.01,23.776884]
[1732572748159,13.1487,238.19,238.01,23.776884]
[1732572748160,20.41058262,238.11,238.04,20.41058262]
[1732572749174,4.4081,238.19,238.06,20.41058262]
[1732572749371,20.41058262,238.12,238.04,20.41058262]
[1732572749574,20.41058262,238.08,238.01,23.776884]
[1732572749885,20.41058262,238.08,238.0,23.776884]
[1732572751358,20.41058262,238.08,238.01,20.41058262]
[1732572751568,1.2598,238.12,238.02,23.776884]
[1732572751569,20.41058262,238.1,238.02,23.776884]
[1732572752391,20.41058262,238.12,238.04,23.776884]
[1732572752877,20.41058262,238.12,238.03,20.41058262]
[1732572753089,20.41058262,238.1,238.01,20.41058262]
[1732572753384,20.41058262,238.1,238.02,23.776884]
[1732572754385,20.41058262,238.12,238.03,20.41058262]
[1732572755463,21.67038262,238.12,238.03,20.41058262]
[1732572755772,21.67038262,238.12,238.05,20.41058262]
[1732572756079,20.41058262,238.12,238.05,20.41058262]
[1732572756797,20.41058262,238.16,238.09,20.41058262]
[1732572757881,20.41058262,238.14,238.07,20.41058262]
[1732572758090,20.41058262,238.14,238.06,23.776884]
[1732572758389,20.41058262,238.16,238.07,20.41058262]
[1732572759088,41.66998262,238.2,238.11,20.41058262]
[1732572759266,20.41058262,238.18,238.11,20.41058262]
[1732572759684,41.66998262,238.2,238.11,20.41058262]
[1732572760186,6.2633,238.23,238.15,20.41058262]
[1732572760567,6.2633,238.23,238.17,20.41058262]
[1732572760978,1.7594757,238.26,238.19,20.41058262]
[1732572761168,22.17005832,238.26,238.19,20.41058262]
[1732572762665,1.7594757,238.26,238.19,20.41058262]
[1732572763087,0.5003757,238.26,238.19,20.41058262]
[1732572763589,20.41058262,238.24,238.15,20.41058262]
[1732572763885,1.7594757,238.26,238.11,20.41058262]
[1732572763886,20.41058262,238.2,238.11,20.41058262]
[1732572764087,20.41058262,238.22,238.13,20.41058262]
[1732572764281,20.41058262,238.24,238.15,20.41058262]
[1732572764465,20.91095832,238.26,238.17,20.41058262]
[1732572765195,20.41058262,238.24,238.17,20.41058262]
[1732572765791,20.91095832,238.26,238.17,20.41058262]
[1732572766193,20.41058262,238.24,238.15,20.41058262]
[1732572767880,1.2592,238.25,238.17,20.41058262]
[1732572768586,20.41058262,238.24,238.17,20.41058262]
[1732572768885,20.41058262,238.24,238.15,20.41058262]
[1732572769600,1.2592,238.23,238.15,20.41058262]
[1732572769965,20.41058262,238.22,238.15,20.41058262]
[1732572770169,1.2592,238.23,238.15,20.41058262]
[1732572771185,1.2592,238.23,238.17,20.41058262]
[1732572771394,20.41058262,238.24,238.17,20.41058262]
[1732572771584,21.66978262,238.24,238.17,20.41058262]
[1732572771974,21.66978262,238.24,238.15,20.41058262]
[1732572772789,21.66978262,238.24,238.17,20.41058262]
[1732572774399,1.2592,238.24,238.17,12.70497007]
[1732572774800,12.70497007,238.25,238.17,12.70497007]
[1732572774972,0.5003757,238.26,238.22,12.70497007]
[1732572775990,0.5003757,238.26,238.24,12.70497007]
[1732572777591,0.5003757,238.26,238.25,23.776884]
[1732572778271,0.5003757,238.26,238.25,44.08435148]
[1732572778875,0.5003757,238.26,238.25,48.28155148]
[1732572780178,0.5003757,238.26,238.25,44.08435148]
[1732572780386,0.5003757,238.26,238.25,48.28155148]
[1732572780676,0.5003757,238.26,238.25,48.53253148]
[1732572780893,1.2583,238.42,238.31,23.776884]
[1732572781076,20.30746748,238.41,238.34,20.30746748]
[1732572781416,3.1451,238.47,238.25,10.61859]
[1732572781417,21.56536748,238.49,238.4,20.30746748]
[1732572782079,20.30746748,238.43,238.36,20.30746748]
[1732572782279,20.30746748,238.45,238.36,20.30746748]
[1732572782875,21.56566748,238.43,238.34,20.30746748]
[1732572783375,20.30746748,238.43,238.36,20.30746748]
[1732572783703,20.30746748,238.45,238.38,20.30746748]
[1732572785295,20.30746748,238.43,238.36,20.30746748]
[1732572786891,30.0,238.4,238.38,20.30746748]
[1732572787887,20.30746748,238.47,238.38,20.30746748]
[1732572788082,20.30746748,238.47,238.4,20.30746748]
[1732572788288,30.0,238.41,238.4,20.30746748]
[1732572788909,20.30746748,238.47,238.4,20.30746748]
[1732572789605,21.56546748,238.47,238.4,20.30746748]
[1732572789812,30.0,238.41,238.34,20.30746748]
[1732572789982,30.0,238.41,238.36,20.30746748]
[1732572791103,30.0,238.41,238.34,20.30746748]
[1732572791496,20.30746748,238.43,238.34,20.30746748]
[1732572791798,20.30746748,238.45,238.36,20.30746748]
[1732572791988,20.30746748,238.45,238.38,20.30746748]
[1732572792385,20.30746748,238.47,238.38,20.30746748]
[1732572792603,21.56546748,238.47,238.38,20.30746748]
[1732572793081,20.30746748,238.41,238.34,20.30746748]
[1732572793284,20.30746748,238.39,238.3,20.30746748]
[1732572793491,20.30746748,238.37,238.3,20.30746748]
[1732572794417,20.30746748,238.35,238.28,20.30746748]
[1732572794625,20.30746748,238.35,238.26,20.30746748]
[1732572794927,21.56606748,238.35,238.26,18.74746748]
[1732572795639,20.30746748,238.33,238.26,18.74746748]
[1732572795811,20.30746748,238.33,238.17,10.4964]
[1732572795812,20.30746748,238.33,238.24,20.30746748]
[1732572796016,20.30746748,238.3,238.22,20.30746748]
[1732572796212,20.30746748,238.28,238.2,20.30746748]
[1732572796904,20.30746748,238.3,238.22,20.30746748]
[1732572797497,30.0,238.27,238.22,20.30746748]
[1732572797691,30.0,238.27,238.24,20.30746748]
[1732572797885,30.0,238.27,238.26,20.30746748]
[1732572798482,21.56616748,238.34,238.26,20.30746748]
[1732572799293,20.30746748,238.34,238.2,44.08435148]
[1732572799490,3.13066748,238.36,238.28,20.30746748]
[1732572801217,23.43813496,238.36,238.28,20.30746748]
[1732572801603,20.30746748,238.34,238.24,20.30746748]
[1732572801915,20.30746748,238.31,238.24,20.30746748]
[1732572802310,50.30746748,238.29,238.22,20.30746748]
[1732572802498,34.42391863,238.66,238.13,10.4982]
[1732572802499,4.497,238.65,238.5,132.35581412]
[1732572802702,20.30746748,238.63,238.52,20.30746748]
[1732572802897,20.30746748,238.63,238.5,20.30746748]
[1732572802898,20.30746748,238.61,238.5,20.30746748]
[1732572803213,30.0,238.51,238.48,20.30746748]
[1732572803457,30.0,238.51,238.4,8.38599763]
[1732572803724,20.30746748,238.55,238.44,20.30746748]
[1732572804290,20.30746748,238.51,238.4,20.30746748]
[1732572804593,20.0,238.55,238.44,20.30746748]
[1732572804594,20.30746748,238.53,238.44,20.30746748]
[1732572805311,21.56516748,238.53,238.44,20.30746748]
[1732572805888,20.30746748,238.51,238.4,20.30746748]
[1732572806110,26.87126748,238.49,238.4,20.30746748]
[1732572806301,20.30746748,238.47,238.38,20.30746748]
[1732572806504,20.30746748,238.47,238.36,20.30746748]
[1732572806849,20.30746748,238.45,238.34,20.30746748]
[1732572807011,20.30746748,238.41,238.32,20.30746748]
[1732572807191,10.0,238.47,238.32,20.30746748]
[1732572807192,20.30746748,238.43,238.32,20.30746748]
[1732572807495,20.30746748,238.45,238.36,20.30746748]
[1732572808018,20.30746748,238.43,238.34,20.30746748]
[1732572808496,20.30746748,238.45,238.36,20.30746748]
[1732572809200,33.50177826,238.49,238.4,20.30746748]
[1732572809411,13.19431078,238.49,238.42,20.30746748]
[1732572809617,13.19431078,238.49,238.44,20.30746748]
[1732572809797,13.19431078,238.49,238.42,20.30746748]
[1732572809996,13.19431078,238.49,238.3,14.6872]
[1732572809997,20.30746748,238.43,237.89,80.87316959]
[1732572810194,90.0,237.67,237.52,78.38105283]
[1732572810430,90.0,237.67,237.33,104.50807045]
[1732572810431,10.0,237.23,237.1,104.7510999]
[1732572810724,10.0,237.23,236.95,104.66528498]
[1732572810725,0.52844777,237.03,236.74,9.47155223]
[1732572810922,20.30746748,236.94,236.87,9.47155223]
[1732572811090,40.0794136,236.93,236.86,2.46564239]
[1732572811292,114.67607195,236.92,236.75,10.0]
[1732572811505,79.39487348,236.91,236.82,10.0]
[1732572811704,79.39487348,236.91,236.6,0.7087304]
[1732572811705,88.89816065,236.9,236.61,8.39374541]
[1732572811910,21.92291644,236.88,236.5,8.3e-07]
[1732572812093,61.46789808,236.87,236.54,12.63]
[1732572812313,5.08982599,236.76,236.66,33.4194038]
[1732572812495,104.19691816,236.75,236.66,30.9194038]
[1732572812813,154.79499723,236.74,236.68,33.4194038]
[1732572812993,45.16923959,236.73,236.62,33.4194038]
[1732572813193,45.16923959,236.73,236.55,48.2153038]
[1732572813194,154.84350337,236.72,236.55,48.2153038]
[1732572813396,8.58844576,236.71,236.55,48.2153038]
[1732572813617,74.50864053,236.7,236.58,33.4194038]
[1732572813913,74.50864053,236.7,236.55,14.7959]
[1732572813914,68.77043604,236.69,236.64,33.4194038]
[1732572814147,68.77043604,236.69,236.67,33.4194038]
[1732572814148,80.24684502,236.68,236.67,33.4194038]
[1732572814319,146.99089501,236.68,236.67,33.4194038]
[1732572814506,125.83064715,236.68,236.67,33.4194038]
[1732572814811,125.83064715,236.68,236.67,37.7700938]
[1732572815003,180.91957422,236.68,236.67,37.7700938]
[1732572815228,46.21957422,236.68,236.67,37.6446038]
[1732572815394,97.81490848,236.68,236.67,37.6446038]
[1732572815594,97.81490848,236.68,236.67,37.7700938]
[1732572816026,97.81490848,236.68,236.67,37.92461288]
[1732572816398,97.81490848,236.68,236.67,38.05010288]
[1732572816611,97.81490848,236.68,236.67,4.2252]
[1732572816903,97.81490848,236.68,236.65,24.78798424]
[1732572817428,97.81490848,236.68,236.63,10.5649]
[1732572817595,97.81490848,236.68,236.57,33.55391702]
[1732572817790,97.81490848,236.68,236.58,44.14112288]
[1732572818210,51.59533426,236.67,236.58,44.14112288]
[1732572818426,51.59533426,236.67,236.64,33.57392288]
[1732572818718,51.59533426,236.67,236.66,0.12549]
[1732572818911,51.59533426,236.67,236.66,23.902374]
[1732572819114,51.59533426,236.67,236.65,4.2256]
[1732572819823,51.59533426,236.67,236.65,4.2056]
[1732572820399,51.59533426,236.67,236.66,0.12549]
[1732572820814,51.59533426,236.67,236.65,4.2056]
[1732572821146,53.47364416,236.66,236.65,4.2056]
[1732572821528,53.47364416,236.66,236.65,37.90501288]
[1732572821909,20.0,236.77,236.66,23.902374]
[1732572822276,20.0,236.77,236.71,20.0]
[1732572822409,20.0,236.77,236.69,20.12549]
[1732572823018,20.0,236.77,236.69,20.0]
[1732572823330,42.52456348,236.76,236.67,0.12549]
[1732572823623,96.89531968,236.69,236.68,33.57392288]
[1732572823843,80.22871968,236.69,236.68,33.57392288]
[1732572824015,109.65071075,236.69,236.68,33.57392288]
[1732572824201,143.51404926,236.69,236.68,33.57392288]
[1732572824703,143.51404926,236.69,236.68,37.79902288]